bitfinex/quotes_BTCUSD_20250623
["timestamp","ask_amount","ask_price","bid_price","bid_amount"]
[1750721822845,0.97705983,105610.0,105600.0,0.00066118]
[1750721823048,1.07252978,105610.0,105600.0,0.00066118]
[1750721826235,1.23376978,105610.0,105600.0,0.00066118]
[1750721826697,1.23378772,105610.0,105600.0,0.00066118]
[1750721826913,1.22978772,105610.0,105600.0,0.00066118]
[1750721827134,1.06854772,105610.0,105600.0,0.00066118]
[1750721827351,1.22770772,105610.0,105600.0,0.00066118]
[1750721827785,1.22670772,105610.0,105600.0,0.00066118]
[1750721827996,0.4930678,105610.0,105600.0,0.00066118]
[1750721828215,0.1304907,105610.0,105600.0,0.01586118]
[1750721829722,0.1314907,105610.0,105600.0,0.01586118]
[1750721830590,0.15715402,105610.0,105600.0,0.01586118]
[1750721830814,0.1571539,105610.0,105600.0,0.01586118]
[1750721831019,0.15615389,105610.0,105600.0,0.01586118]
[1750721831235,0.15615389,105610.0,105600.0,0.00166118]
[1750721831891,0.17255389,105610.0,105600.0,0.00166118]
[1750721832340,0.33083389,105610.0,105600.0,0.00166118]
[1750721832752,0.33083389,105610.0,105600.0,0.00266118]
[1750721833382,0.76100301,105610.0,105600.0,0.00266118]
[1750721833595,0.85533921,105610.0,105600.0,0.00266118]
[1750721833805,0.86989672,105610.0,105600.0,0.00266118]
[1750721834259,1.36159493,105610.0,105600.0,0.00166118]
[1750721834708,1.31159493,105610.0,105600.0,0.00066118]
[1750721834894,1.36259493,105610.0,105600.0,0.00066118]
[1750721836262,1.36359493,105610.0,105600.0,0.00066118]
[1750721836464,6.41359493,105610.0,105600.0,0.00066118]
[1750721836882,6.41259493,105610.0,105600.0,0.00066118]
[1750721837087,6.41359493,105610.0,105600.0,0.00066118]
[1750721838274,6.46359493,105610.0,105600.0,0.00066118]
[1750721839765,6.4730631,105610.0,105600.0,0.00066118]
[1750721839979,6.46359493,105610.0,105600.0,0.00066118]
[1750721840184,6.47306301,105610.0,105600.0,0.00066118]
[1750721840596,6.47306292,105610.0,105600.0,0.00066118]
[1750721840823,6.43523593,105610.0,105600.0,0.00066118]
[1750721841059,6.38523593,105610.0,105600.0,0.00066118]
[1750721841279,1.28523593,105610.0,105600.0,0.00066118]
[1750721841495,1.26041389,105610.0,105600.0,0.00066118]
[1750721841703,1.31041389,105610.0,105600.0,0.00066118]
[1750721841904,1.22484394,105610.0,105600.0,0.00066118]
[1750721842331,1.27484394,105610.0,105600.0,0.00066118]
[1750721842543,1.22484394,105610.0,105600.0,0.00066118]
[1750721842746,1.27484394,105610.0,105600.0,0.00066118]
[1750721842971,0.79427482,105610.0,105600.0,0.00066118]
[1750721843180,0.63339482,105610.0,105600.0,0.00066118]
[1750721843396,0.84427482,105610.0,105600.0,0.00066118]
[1750721844690,0.68439777,105610.0,105600.0,0.00066118]
[1750721844970,0.65605108,105610.0,105600.0,0.00066118]
[1750721845183,0.49518112,105610.0,105600.0,0.00066118]
[1750721845414,0.65602112,105610.0,105600.0,0.00066118]
[1750721846907,0.64936866,105610.0,105600.0,0.00066118]
[1750721847109,0.65602236,105610.0,105600.0,0.00066118]
[1750721847944,0.64936866,105610.0,105600.0,0.00066118]
[1750721848158,0.65602236,105610.0,105600.0,0.00066118]
[1750721848571,0.75149231,105610.0,105600.0,0.00066118]
[1750721848775,0.65602236,105610.0,105600.0,0.00066118]
[1750721850158,1.10159148,105610.0,105600.0,0.00066118]
[1750721850797,1.12993881,105610.0,105600.0,0.00066118]
[1750721851257,1.14768374,105610.0,105600.0,0.00066118]
[1750721852525,1.11933705,105610.0,105600.0,0.00066118]
[1750721852712,1.229807,105610.0,105600.0,0.00066118]
[1750721853437,1.24434785,105610.0,105600.0,0.00066118]
[1750721853587,1.22660292,105610.0,105600.0,0.00066118]
[1750721854204,1.26217287,105610.0,105600.0,0.00066118]
[1750721854427,1.30826512,105610.0,105600.0,0.00066118]
[1750721854627,1.27991843,105610.0,105600.0,0.00066118]
[1750721854778,1.30826512,105610.0,105600.0,0.00066118]
[1750721855226,1.27991843,105610.0,105600.0,0.00066118]
[1750721856143,1.26217287,105610.0,105600.0,0.00066118]
[1750721856310,1.17685769,105610.0,105600.0,0.00066118]
[1750721857613,1.17020335,105610.0,105600.0,0.00066118]
[1750721857815,1.57171142,105610.0,105600.0,0.00066118]
[1750721858021,1.58945593,105610.0,105600.0,0.00066118]
[1750721858218,1.6772707,105610.0,105600.0,0.00066118]
[1750721858658,1.66780262,105610.0,105600.0,0.00066118]
[1750721858867,1.32294868,105610.0,105600.0,0.00066118]
[1750721859523,1.32295017,105610.0,105600.0,0.00066118]
[1750721860240,1.66780411,105610.0,105600.0,0.00066118]
[1750721860436,6.02809623,105610.0,105600.0,0.00066118]
[1750721860665,6.00164022,105610.0,105600.0,0.00066118]
[1750721860870,0.6558636,105610.0,105600.0,0.01686118]
[1750721861074,0.6558636,105610.0,105600.0,0.03316118]
[1750721861262,0.1551836,105610.0,105600.0,0.03316118]
[1750721861487,0.28654547,105610.0,105600.0,0.03316118]
[1750721861690,0.12486547,105610.0,105600.0,0.03316118]
[1750721861871,0.28554547,105610.0,105600.0,0.03316118]
[1750721862692,0.28454547,105610.0,105600.0,0.03316118]
[1750721863237,0.28454547,105610.0,105600.0,0.01886118]
[1750721863858,0.28454547,105610.0,105600.0,0.03456118]
[1750721864821,0.28450547,105610.0,105600.0,0.03456118]
[1750721865686,0.25618186,105610.0,105600.0,0.03456118]
[1750721865887,0.09554186,105610.0,105600.0,0.03456118]
[1750721866387,0.09554186,105610.0,105600.0,0.04403087]
[1750721866851,0.09554186,105610.0,105600.0,0.03456118]
[1750721868019,0.09554186,105610.0,105600.0,0.2334248]
[1750721868216,0.09554186,105610.0,105600.0,0.03456118]
[1750721868578,0.09554186,105610.0,105600.0,0.05350047]
[1750721868994,0.09554186,105610.0,105600.0,0.69268379]
[1750721868995,4e-05,105610.0,105600.0,0.69268379]
[1750721870704,4e-05,105610.0,105600.0,0.98883542]
[1750721870916,4e-05,105610.0,105600.0,1.85618828]
[1750721871132,0.07566085,105660.0,105640.0,0.0319]
[1750721871347,0.17116271,105660.0,105640.0,0.0319]
[1750721871562,0.33180271,105660.0,105640.0,0.0321]
[1750721872643,0.36078444,105660.0,105640.0,0.0321]
[1750721873283,0.20014444,105660.0,105640.0,0.0321]
[1750721873458,0.36074444,105660.0,105640.0,0.0321]
[1750721873694,0.36474444,105660.0,105640.0,0.0321]
[1750721873925,0.09550186,105650.0,105620.0,0.0158]
[1750721874148,0.61240669,105650.0,105620.0,0.0311461]
[1750721874364,0.09550186,105650.0,105630.0,0.0153]
[1750721874570,0.09550186,105650.0,105630.0,0.0311]
[1750721876314,0.09550186,105650.0,105630.0,0.0321]
[1750721881463,0.11110186,105650.0,105630.0,0.0163]
[1750721883717,0.0156,105640.0,105630.0,0.001]
[1750721883945,0.11110186,105640.0,105630.0,0.001]
[1750721884355,0.4400454,105640.0,105630.0,0.001]
[1750721884570,0.4400454,105640.0,105620.0,0.0156461]
[1750721884737,0.09550186,105630.0,105620.0,0.0309461]
[1750721886691,0.09550186,105630.0,105620.0,0.0339461]
[1750721887306,0.09550186,105630.0,105620.0,0.0359461]
[1750721887935,0.09550186,105630.0,105620.0,0.0050461]
[1750721888344,0.09550186,105630.0,105620.0,0.0210461]
[1750721890096,0.4400454,105630.0,105620.0,0.0210461]
[1750721890322,0.09550186,105630.0,105620.0,0.0210461]
[1750721894116,0.09550186,105630.0,105620.0,0.0050461]
[1750721894250,0.4400454,105630.0,105620.0,0.0050461]
[1750721894453,0.4564454,105630.0,105620.0,0.0050461]
[1750721894676,0.11190186,105630.0,105620.0,0.0050461]
[1750721894873,0.09550186,105630.0,105620.0,0.0050461]
[1750721895079,0.09550186,105630.0,105620.0,0.0215461]
[1750721895276,0.09550186,105630.0,105620.0,0.0195461]
[1750721895770,0.11060186,105630.0,105620.0,0.0010461]
[1750721896889,0.09550186,105630.0,105620.0,0.0010461]
[1750721900296,1.25906798,105630.0,105620.0,0.0010461]
[1750721900516,0.62000563,105630.0,105620.0,0.0010461]
[1750721900716,0.80209795,105630.0,105620.0,0.0010461]
[1750721902737,0.96257795,105630.0,105620.0,0.0010461]
[1750721903356,0.09550186,105630.0,105620.0,0.0164461]
[1750721903562,0.09550186,105630.0,105620.0,0.0319461]
[1750721904019,0.09550186,105630.0,105620.0,0.37648964]
[1750721905603,0.09550186,105630.0,105620.0,0.0319461]
[1750721905998,0.11110186,105630.0,105620.0,0.0010461]
[1750721906233,0.09550186,105630.0,105620.0,0.0010461]
[1750721906402,0.09550186,105630.0,105620.0,0.0172461]
[1750721913983,0.09550186,105630.0,105620.0,0.0327461]
[1750721915161,0.52154354,105650.0,105630.0,0.0156]
[1750721915369,0.09550186,105640.0,105630.0,0.0156]
[1750721915941,0.09550186,105640.0,105620.0,0.0321461]
[1750721916150,0.11210186,105640.0,105620.0,0.0311461]
[1750721917161,0.11310186,105640.0,105620.0,0.0311461]
[1750721918863,0.4576454,105640.0,105620.0,0.0311461]
[1750721919171,0.4586454,105640.0,105620.0,0.0311461]
[1750721919612,0.11410186,105640.0,105620.0,0.0311461]
[1750721921899,0.09750186,105640.0,105630.0,0.0316]
[1750721922119,0.09750186,105640.0,105630.0,0.37614354]
[1750721922568,0.09650186,105640.0,105630.0,0.0316]
[1750721923237,0.09650186,105640.0,105630.0,0.0346]
[1750721923455,0.56582527,105660.0,105640.0,0.0153]
[1750721923456,0.54992527,105660.0,105640.0,0.0153]
[1750721923686,0.14713484,105660.0,105640.0,0.55863162]
[1750721923915,0.01666393,105670.0,105650.0,0.37524354]
[1750721924135,0.11988608,105670.0,105650.0,0.37524354]
[1750721924341,0.11988601,105670.0,105650.0,0.37524354]
[1750721924778,0.11323584,105670.0,105650.0,0.37524354]
[1750721925410,0.09550186,105670.0,105650.0,0.37524354]
[1750721925858,0.001,105660.0,105650.0,0.37524354]
[1750721926067,0.001,105660.0,105650.0,0.6024076]
[1750721926517,0.0001,105680.0,105660.0,0.0157]
[1750721926745,0.09560186,105680.0,105660.0,0.37624354]
[1750721927190,0.09560186,105680.0,105670.0,0.0158]
[1750721927626,0.09560186,105680.0,105670.0,0.37594354]
[1750721927837,0.09574002,105680.0,105670.0,0.37594354]
[1750721928055,0.09574002,105680.0,105670.0,0.0158]
[1750721931351,0.00023816,105680.0,105670.0,0.57497525]
[1750721931569,0.00023816,105680.0,105670.0,0.37624354]
[1750721931791,0.00023816,105680.0,105670.0,0.41964354]
[1750721932014,0.09574002,105680.0,105650.0,0.004]
[1750721932237,0.4562454,105670.0,105650.0,0.0205]
[1750721932442,0.4723454,105670.0,105650.0,0.004]
[1750721932674,0.12780186,105670.0,105650.0,0.004]
[1750721933110,0.11170186,105670.0,105650.0,0.36464354]
[1750721933322,0.09550186,105670.0,105650.0,0.38074354]
[1750721933573,0.11200186,105670.0,105650.0,0.36264354]
[1750721933804,0.11200186,105670.0,105650.0,0.36064354]
[1750721934462,0.11080186,105670.0,105650.0,0.34454354]
[1750721934681,0.12730186,105670.0,105650.0,0.34454354]
[1750721935821,0.12730186,105670.0,105640.0,0.77725134]
[1750721936094,0.12730186,105670.0,105640.0,0.44217373]
[1750721936315,0.12730186,105670.0,105640.0,0.59246311]
[1750721936535,0.12730186,105670.0,105640.0,0.79614311]
[1750721937056,0.12730186,105670.0,105650.0,0.34454354]
[1750721937469,0.11200186,105670.0,105650.0,0.34454354]
[1750721938111,0.11200186,105670.0,105650.0,0.54944778]
[1750721938306,0.09550186,105670.0,105650.0,0.58367811]
[1750721938755,0.09550186,105670.0,105660.0,0.36014354]
[1750721938967,0.00023816,105680.0,105670.0,0.0156]
[1750721939167,0.09574002,105680.0,105670.0,0.36014354]
[1750721940633,0.09574002,105680.0,105670.0,0.34454354]
[1750721940872,0.09574002,105680.0,105660.0,0.53572354]
[1750721941110,0.09574002,105680.0,105660.0,0.52042354]
[1750721941322,0.11084002,105680.0,105660.0,0.52042354]
[1750721941549,0.11084002,105680.0,105660.0,0.40354354]
[1750721941969,0.09550186,105670.0,105660.0,0.38794354]
[1750721942187,0.09550186,105670.0,105650.0,0.56382354]
[1750721942393,0.11060186,105670.0,105650.0,0.56382354]
[1750721942618,0.11060186,105670.0,105650.0,0.0156]
[1750721942836,0.11060186,105670.0,105650.0,0.40354354]
[1750721943074,0.11060186,105670.0,105650.0,0.059]
[1750721943300,0.4717454,105670.0,105640.0,0.57908354]
[1750721943518,0.0151,105660.0,105650.0,0.002]
[1750721943778,0.11060186,105660.0,105640.0,0.40354354]
[1750721944476,0.09550186,105650.0,105630.0,0.35954354]
[1750721944676,0.51988354,105640.0,105610.0,0.40294354]
[1750721944885,0.09550186,105630.0,105610.0,0.40294354]
[1750721945117,0.09550186,105630.0,105610.0,0.38794354]
[1750721945324,0.11060186,105630.0,105610.0,0.38794354]
[1750721945772,0.11060186,105630.0,105600.0,0.38809517]
[1750721945773,0.14617181,105630.0,105600.0,0.38809517]
[1750721945998,0.14617181,105630.0,105600.0,0.54833517]
[1750721946248,0.14617181,105630.0,105610.0,0.002]
[1750721946464,0.49071535,105630.0,105610.0,0.002]
[1750721946682,0.0151,105620.0,105610.0,0.002]
[1750721946913,0.09550186,105620.0,105610.0,0.002]
[1750721947591,0.09550186,105620.0,105600.0,0.38855635]
[1750721947809,0.10869553,105620.0,105600.0,0.38855635]
[1750721948254,0.09550186,105620.0,105600.0,0.39802604]
[1750721948476,0.09550186,105620.0,105610.0,0.002]
[1750721948698,0.09550186,105620.0,105610.0,0.004]
[1750721948901,0.09550186,105620.0,105610.0,0.002]
[1750721949108,0.09550186,105620.0,105600.0,0.22041437]
[1750721949523,0.09550186,105620.0,105600.0,0.24838379]
[1750721949703,0.09550186,105620.0,105610.0,0.002]
[1750721950127,0.16024,105630.0,105610.0,0.6574873]
[1750721950339,0.09550186,105630.0,105610.0,0.67642409]
[1750721950550,0.16024,105640.0,105610.0,0.70139235]
[1750721950750,0.25574186,105640.0,105610.0,0.70139172]
[1750721950967,0.09550186,105640.0,105610.0,0.85016355]
[1750721951188,0.09550186,105640.0,105610.0,0.41938922]
[1750721951436,0.09550186,105640.0,105620.0,0.00946781]
[1750721951649,0.09550186,105640.0,105620.0,0.0094679]
[1750721951863,0.09550186,105640.0,105620.0,0.0159]
[1750721952097,0.09750186,105640.0,105620.0,0.0253679]
[1750721952321,0.09650186,105640.0,105620.0,0.0159]
[1750721952587,0.09850186,105640.0,105620.0,0.22419001]
[1750721952841,0.09750186,105640.0,105620.0,0.44667397]
[1750721953271,0.09750186,105640.0,105620.0,0.0159]
[1750721953489,0.09750186,105640.0,105630.0,0.19880705]
[1750721953703,0.002,105640.0,105630.0,0.65424766]
[1750721953924,0.002,105640.0,105630.0,0.66371421]
[1750721954139,0.356,105670.0,105630.0,0.68264687]
[1750721954309,0.001,105640.0,105630.0,0.68001368]
[1750721954522,0.001,105640.0,105630.0,0.84025368]
[1750721954727,0.09550186,105660.0,105640.0,0.19878788]
[1750721955293,0.09550186,105660.0,105640.0,0.21518797]
[1750721955700,0.11210186,105660.0,105640.0,0.0164]
[1750721955905,0.09550186,105660.0,105640.0,0.0164]
[1750721956540,0.11100186,105660.0,105630.0,0.83088748]
[1750721956747,0.11100186,105660.0,105630.0,0.82142093]
[1750721956952,0.11100186,105660.0,105630.0,0.84035403]
[1750721957166,0.11100186,105660.0,105630.0,0.40958006]
[1750721957390,0.11100186,105660.0,105630.0,0.84982041]
[1750721957621,0.11100186,105660.0,105630.0,0.8592867]
[1750721957855,0.11100186,105660.0,105630.0,0.83088757]
[1750721958079,0.11100186,105660.0,105630.0,0.84982058]
[1750721958320,0.11100186,105660.0,105630.0,0.83352058]
[1750721958551,0.11100186,105660.0,105630.0,0.82405412]
[1750721958827,0.11100186,105660.0,105630.0,0.66381412]
[1750721958986,0.11100186,105660.0,105630.0,0.65434766]
[1750721959519,0.11100186,105660.0,105630.0,0.0153]
[1750721959738,0.0156,105650.0,105620.0,0.63513061]
[1750721960054,0.11110186,105650.0,105620.0,0.86721978]
[1750721960273,0.11110186,105650.0,105620.0,0.87668714]
[1750721960480,0.11110186,105650.0,105620.0,0.8861536]
[1750721960663,0.11110186,105650.0,105620.0,0.86721888]
[1750721960861,0.11110186,105650.0,105620.0,0.85975161]
[1750721961095,0.11110186,105650.0,105620.0,0.85228452]
[1750721961310,0.11190186,105640.0,105620.0,0.0040461]
[1750721961522,0.62361397,105630.0,105620.0,0.0040461]
[1750721961732,1.0925897,105630.0,105620.0,0.0040461]
[1750721961942,6.22680896,105630.0,105620.0,0.0040461]
[1750721962146,6.27959502,105630.0,105620.0,0.0040461]
[1750721962319,6.60486266,105630.0,105620.0,0.0020461]
[1750721962467,6.60486266,105630.0,105600.0,0.00015163]
[1750721962468,5.0804,105610.0,105600.0,0.00015163]
[1750721962667,0.32167181,105610.0,105600.0,0.00015163]
[1750721963121,0.33621266,105610.0,105600.0,0.00015163]
[1750721963322,0.36456694,105610.0,105600.0,0.00015163]
[1750721963754,6.36274908,105610.0,105600.0,0.00015163]
[1750721963990,6.46716939,105610.0,105600.0,0.00015163]
[1750721964192,0.01454085,105600.0,105590.0,0.0002]
[1750721964408,0.63070002,105600.0,105590.0,0.0002]
[1750721964822,0.6901689,105600.0,105590.0,0.0002]
[1750721964994,0.77616997,105600.0,105590.0,0.0002]
[1750721965201,0.75355658,105600.0,105590.0,0.0002]
[1750721965617,0.75855658,105600.0,105590.0,0.0002]
[1750721965806,0.75355658,105600.0,105590.0,0.0002]
[1750721967348,0.75455658,105600.0,105590.0,0.0022]
[1750721967543,0.75755658,105600.0,105590.0,0.0022]
[1750721968533,5.80755658,105600.0,105590.0,0.0022]
[1750721968762,5.9155953,105600.0,105590.0,0.0022]
[1750721969075,6.27982186,105600.0,105590.0,0.0022]
[1750721970058,6.26220254,105600.0,105590.0,0.0022]
[1750721970474,0.4778567,105600.0,105590.0,0.0022]
[1750721970680,0.61554186,105600.0,105590.0,0.0022]
[1750721971715,0.45530186,105600.0,105590.0,0.0022]
[1750721971927,0.61554186,105600.0,105590.0,0.0022]
[1750721972882,0.45530186,105600.0,105590.0,0.0022]
[1750721973102,0.71141181,105600.0,105590.0,0.0022]
[1750721973342,1.14218578,105600.0,105590.0,0.0022]
[1750721974311,1.04671583,105600.0,105590.0,0.0022]
[1750721974899,0.63048271,105600.0,105590.0,0.0022]
[1750721976199,1.06125668,105600.0,105590.0,0.0022]
[1750721980383,1.07635668,105600.0,105590.0,0.0022]
[1750721980914,1.06505468,105600.0,105590.0,0.0022]
[1750721981350,1.06125668,105600.0,105590.0,0.0022]
[1750721981929,1.15672663,105600.0,105590.0,0.0022]
[1750721982129,1.06125668,105600.0,105590.0,0.0022]
[1750721983560,0.63707981,105600.0,105590.0,0.0022]
[1750721984745,0.43950186,105600.0,105590.0,0.0022]
[1750721984955,0.59970186,105600.0,105590.0,0.0178]
[1750721985161,0.09950186,105600.0,105590.0,0.23198228]
[1750721985293,0.09950186,105600.0,105590.0,0.24145242]
[1750721985503,0.09950186,105600.0,105590.0,0.23198228]
[1750721985706,0.09850186,105600.0,105590.0,0.23945242]
[1750721986369,0.09850186,105600.0,105590.0,0.22998228]
[1750721986923,0.09550186,105600.0,105590.0,0.24892265]
[1750721987163,0.09550186,105600.0,105590.0,0.25092265]
[1750721987313,0.09550186,105600.0,105590.0,0.24145251]
[1750721987515,0.001,105600.0,105590.0,0.23385251]
[1750721987822,0.001,105600.0,105590.0,0.68799644]
[1750721988026,0.1602,105610.0,105600.0,0.19886344]
[1750721988256,0.11770024,105630.0,105610.0,0.1988402]
[1750721988488,0.35174474,105630.0,105610.0,0.2142402]
[1750721988709,0.35174474,105630.0,105610.0,0.22370873]
[1750721988941,0.35174474,105630.0,105610.0,0.23870873]
[1750721989155,0.35174474,105630.0,105610.0,0.25764534]
[1750721989411,0.34512233,105630.0,105620.0,0.0244679]
[1750721989632,0.18596233,105630.0,105620.0,0.0244679]
[1750721989847,0.3750873,105630.0,105620.0,0.015]
[1750721990776,0.38172209,105630.0,105620.0,0.015]
[1750721990995,0.3817158,105630.0,105620.0,0.015]
[1750721991240,0.18796233,105630.0,105620.0,0.22329324]
[1750721991472,0.09146047,105630.0,105620.0,0.23829324]
[1750721991687,0.09246047,105630.0,105620.0,0.24129324]
[1750721991906,0.09246047,105630.0,105620.0,0.2507606]
[1750721992335,0.09146047,105630.0,105620.0,0.2477606]
[1750721992772,0.09246047,105630.0,105620.0,0.26822787]
[1750721993218,0.09246047,105630.0,105620.0,0.69900184]
[1750721993467,0.09246047,105630.0,105620.0,0.26822787]
[1750721993681,0.09246047,105630.0,105620.0,0.24929342]
[1750721993888,0.09246047,105630.0,105620.0,0.25876087]
[1750721994316,0.09046047,105630.0,105620.0,0.26822823]
[1750721994782,0.09046047,105630.0,105620.0,0.27022823]
[1750721995005,0.09046047,105630.0,105620.0,0.26076087]
[1750721995238,0.09046047,105630.0,105620.0,0.23982579]
[1750721995455,0.36128233,105630.0,105620.0,0.011]
[1750721995648,0.36128233,105630.0,105620.0,0.014]
[1750721996818,0.34608233,105630.0,105620.0,0.014]
[1750721999824,0.36188233,105630.0,105620.0,0.014]
[1750722001622,0.37708233,105630.0,105620.0,0.014]
[1750722001847,0.71708233,105630.0,105620.0,0.014]
[1750722002281,0.72370227,105630.0,105620.0,0.014]
[1750722002495,0.71708233,105630.0,105620.0,0.014]
[1750722002709,0.70188233,105630.0,105620.0,0.014]
[1750722002923,1.1326563,105630.0,105620.0,0.014]
[1750722003095,1.1481563,105630.0,105620.0,0.014]
[1750722003613,0.71738233,105630.0,105620.0,0.014]
[1750722003983,0.71638233,105630.0,105620.0,0.003]
[1750722004195,0.81185228,105630.0,105620.0,0.003]
[1750722004403,0.71738233,105630.0,105620.0,0.008]
[1750722004855,0.71738233,105630.0,105620.0,0.005]
[1750722005934,0.70188233,105630.0,105620.0,0.005]
[1750722007198,0.68608233,105630.0,105620.0,0.005]
[1750722007804,0.75626585,105630.0,105620.0,0.005]
[1750722008424,0.68608233,105630.0,105620.0,0.005]
[1750722008638,0.68596233,105630.0,105620.0,0.0212]
[1750722009400,0.18596233,105630.0,105620.0,0.21055807]
[1750722009605,0.18596233,105630.0,105620.0,0.23642588]
[1750722009821,0.18596233,105630.0,105620.0,0.24589351]
[1750722010043,0.09046047,105630.0,105620.0,0.26482841]
[1750722010256,0.09046047,105630.0,105620.0,0.27429568]
[1750722010673,0.09046047,105630.0,105620.0,0.0376]
[1750722010877,0.18596233,105630.0,105620.0,0.0212]
[1750722011296,0.18596233,105630.0,105620.0,0.005]
[1750722014235,0.19260859,105630.0,105620.0,0.005]
[1750722015316,0.18596233,105630.0,105620.0,0.005]
[1750722015519,0.18596233,105630.0,105620.0,0.0205]
[1750722015719,0.18596233,105630.0,105620.0,0.0365]
[1750722016123,0.18596233,105630.0,105620.0,0.0205]
[1750722016733,0.19261317,105630.0,105620.0,0.0205]
[1750722017688,0.09046047,105630.0,105620.0,0.38155925]
[1750722017862,0.09046047,105630.0,105620.0,0.57091732]
[1750722018066,0.09046047,105630.0,105620.0,0.38155925]
[1750722018536,0.09046047,105630.0,105620.0,0.39102715]
[1750722018741,0.09046047,105630.0,105620.0,0.58985285]
[1750722018921,0.09046047,105630.0,105620.0,0.59932039]
[1750722019165,0.09046047,105630.0,105620.0,0.58985285]
[1750722019541,0.09046047,105630.0,105620.0,0.58985294]
[1750722020396,0.09046047,105630.0,105620.0,0.59932057]
[1750722020566,0.09046047,105630.0,105620.0,0.60878802]
[1750722020777,0.09046047,105630.0,105620.0,0.61825529]
[1750722021716,0.08946047,105630.0,105620.0,0.61325529]
[1750722021921,0.08946047,105630.0,105620.0,0.61625529]
[1750722022123,0.09146047,105630.0,105620.0,0.61878802]
[1750722022317,0.09146047,105630.0,105620.0,0.28369604]
[1750722022564,0.09146047,105630.0,105620.0,0.62525529]
[1750722022750,0.09246047,105630.0,105620.0,0.63025529]
[1750722024054,0.09246047,105630.0,105620.0,0.63025538]
[1750722024527,0.09246047,105630.0,105620.0,0.62078802]
[1750722024930,0.09246047,105630.0,105620.0,0.63025538]
[1750722025412,0.09246047,105630.0,105620.0,0.63025475]
[1750722025841,0.09246047,105630.0,105620.0,0.61132012]
[1750722026044,0.09246047,105630.0,105620.0,0.62078739]
[1750722026492,0.09246047,105630.0,105620.0,0.61132012]
[1750722026717,0.09246047,105630.0,105620.0,0.68975925]
[1750722033426,0.09246047,105630.0,105620.0,0.69922715]
[1750722033633,0.09246047,105630.0,105620.0,0.68975925]
[1750722034048,0.09246047,105630.0,105620.0,0.049]
[1750722034253,0.09246047,105630.0,105620.0,0.0325]
[1750722034465,0.09246047,105630.0,105620.0,0.017]
[1750722034676,0.10766047,105630.0,105620.0,0.017]
[1750722035565,0.09246047,105630.0,105620.0,0.017]
[1750722036188,0.20316233,105630.0,105620.0,0.017]
[1750722036412,0.56412158,105630.0,105620.0,0.017]
[1750722036618,0.21956233,105630.0,105620.0,0.017]
[1750722037041,0.20316233,105630.0,105620.0,0.017]
[1750722037251,0.20216233,105630.0,105620.0,0.012]
[1750722037462,0.20216233,105630.0,105610.0,0.35402805]
[1750722037463,0.20016233,105630.0,105610.0,0.35402805]
[1750722037675,0.20016233,105630.0,105620.0,0.002]
[1750722037842,0.20116233,105630.0,105620.0,0.007]
[1750722038319,0.36096233,105630.0,105620.0,0.007]
[1750722039946,0.36096233,105630.0,105620.0,0.005]
[1750722041230,0.36096233,105630.0,105620.0,0.008]
[1750722043611,0.70552158,105630.0,105620.0,0.008]
[1750722043833,0.36096233,105630.0,105620.0,0.008]
[1750722050835,0.70552158,105630.0,105620.0,0.008]
[1750722051050,1.60253926,105630.0,105620.0,0.008]
[1750722051486,1.63101326,105630.0,105620.0,0.008]
[1750722051886,1.6310142,105630.0,105620.0,0.008]
[1750722053068,1.63100133,105630.0,105620.0,0.008]
[1750722053498,1.60270437,105630.0,105620.0,0.008]
[1750722053866,0.91358587,105630.0,105620.0,0.008]
[1750722054065,1.25814512,105630.0,105620.0,0.008]
[1750722054700,1.60270437,105630.0,105620.0,0.008]
[1750722055989,0.91358587,105630.0,105620.0,0.008]
[1750722056280,1.57423037,105630.0,105620.0,0.008]
[1750722056493,1.5742271,105630.0,105620.0,0.008]
[1750722057022,1.56758235,105630.0,105620.0,0.008]
[1750722058602,1.5498543,105630.0,105620.0,0.008]
[1750722060243,1.51451947,105630.0,105620.0,0.008]
[1750722061696,1.53223843,105630.0,105620.0,0.008]
[1750722061975,1.53888243,105630.0,105620.0,0.008]
[1750722062418,0.34455925,105610.0,105590.0,0.0002]
[1750722062630,0.09550186,105600.0,105590.0,0.0002]
[1750722062832,0.09550186,105600.0,105590.0,0.0311]
[1750722063477,0.09550186,105600.0,105590.0,0.37565925]
[1750722063930,0.44006111,105600.0,105590.0,0.0157]
[1750722064128,0.49179594,105600.0,105590.0,0.0002]
[1750722064549,0.50390273,105600.0,105590.0,0.0002]
[1750722064987,0.50490273,105600.0,105590.0,0.0042]
[1750722065845,0.87479492,105600.0,105590.0,0.0082]
[1750722066050,0.87379492,105600.0,105590.0,0.0042]
[1750722066480,0.87379492,105600.0,105590.0,0.0022]
[1750722066991,0.49390084,105600.0,105590.0,0.0032]
[1750722067202,0.83846009,105600.0,105590.0,0.0032]
[1750722069052,0.96357089,105600.0,105590.0,0.0032]
[1750722069923,0.86810094,105600.0,105590.0,0.0032]
[1750722070346,0.47750084,105600.0,105590.0,0.0032]
[1750722070575,0.63706084,105600.0,105590.0,0.0182]
[1750722071278,0.99792009,105600.0,105590.0,0.0032]
[1750722071473,0.38594085,105590.0,105580.0,0.0002]
[1750722071679,0.82600196,105590.0,105580.0,0.0002]
[1750722072123,0.43550186,105590.0,105580.0,0.0316]
[1750722072335,0.59502186,105590.0,105580.0,0.37615925]
[1750722072756,0.43550186,105590.0,105580.0,0.37662043]
[1750722073641,0.43650186,105590.0,105580.0,0.37662043]
[1750722073851,0.43650186,105590.0,105580.0,0.38609192]
[1750722074061,0.43650186,105590.0,105580.0,0.37662043]
[1750722074387,0.43750186,105590.0,105580.0,0.03706118]
[1750722074600,0.43650186,105590.0,105580.0,0.03706118]
[1750722075039,0.43650186,105590.0,105580.0,0.03806118]
[1750722075600,0.001,105590.0,105580.0,0.59099286]
[1750722075848,0.001,105590.0,105580.0,0.64346417]
[1750722076054,0.001,105590.0,105580.0,0.63399295]
[1750722076603,0.001,105590.0,105580.0,0.64346417]
[1750722076854,0.001,105590.0,105580.0,0.63399295]
[1750722077671,0.001,105590.0,105580.0,0.64346417]
[1750722078218,0.001,105590.0,105580.0,0.6529353]
[1750722078418,0.001,105590.0,105580.0,0.64346417]
[1750722078835,0.001,105590.0,105580.0,0.6529353]
[1750722078965,0.001,105590.0,105580.0,0.66240589]
[1750722079168,0.001,105590.0,105580.0,0.66240544]
[1750722079653,0.001,105590.0,105580.0,0.63399259]
[1750722079810,0.001,105590.0,105580.0,0.63399295]
[1750722080009,0.001,105590.0,105580.0,0.42562043]
[1750722080266,0.001,105590.0,105580.0,0.02166118]
[1750722080468,0.61570111,105590.0,105580.0,0.00666118]
[1750722080703,0.63230111,105590.0,105580.0,0.00666118]
[1750722080877,0.97230111,105590.0,105580.0,0.00666118]